bitfinex-derivatives/quotes_BTCF0:USTF0_20250114
["timestamp","ask_amount","ask_price","bid_price","bid_amount"]
[1736872330446,0.052104,96005.0,96004.0,0.052104]
[1736872330645,0.3608,96006.0,96005.0,0.052104]
[1736872330646,0.412903,96006.0,96005.0,0.052104]
[1736872330847,0.052106,96001.0,96000.0,1.552704]
[1736872331048,0.3608,96006.0,95965.0,0.3608]
[1736872331049,0.3608,96005.0,95965.0,0.3608]
[1736872331261,0.3608,95984.0,95963.0,0.54422771]
[1736872331446,0.3608,95984.0,95964.0,0.052126]
[1736872331447,0.17213538,95970.0,95964.0,0.052126]
[1736872331650,0.052125,95966.0,95965.0,1.5]
[1736872332451,0.052126,95964.0,95958.0,0.052129]
[1736872332656,0.17213538,95970.0,95964.0,0.005]
[1736872332847,0.052125,95965.0,95964.0,1.505]
[1736872334058,0.053125,95965.0,95964.0,1.514]
[1736872334253,0.001,95965.0,95964.0,1.514]
[1736872334554,0.001,95965.0,95964.0,1.509]
[1736872334761,0.001,95965.0,95964.0,1.53043919]
[1736872335055,0.001,95965.0,95964.0,1.509]
[1736872335251,0.001,95965.0,95964.0,1.514]
[1736872336750,0.052116,95982.0,95979.0,0.052117]
[1736872336948,0.3608,95980.0,95964.0,1.514]
[1736872337151,0.53293538,95980.0,95964.0,1.514]
[1736872337453,0.052121,95974.0,95972.0,0.052121]
[1736872338357,0.052121,95974.0,95973.0,1.5]
[1736872339263,0.41447701,95980.0,95979.0,0.052118]
[1736872339563,0.05212,95975.0,95973.0,0.052721]
[1736872339767,0.05212,95975.0,95972.0,0.003]
[1736872339768,0.052121,95973.0,95972.0,0.012]
[1736872339954,0.052121,95973.0,95953.0,0.02064569]
[1736872340155,0.052121,95973.0,95904.0,0.3112]
[1736872340156,0.3608,95956.0,95940.0,0.03285261]
[1736872340461,0.052138,95942.0,95940.0,0.03285261]
[1736872340656,0.052138,95942.0,95917.0,0.052151]
[1736872340657,0.3608,95941.0,95912.0,0.00156378]
[1736872340855,0.3608,95928.0,95912.0,0.00156378]
[1736872341153,0.3608,95928.0,95926.0,0.052146]
[1736872342161,0.3608,95928.0,95927.0,1.5]
[1736872342553,0.05214,95938.0,95933.0,0.052142]
[1736872342755,0.052141,95937.0,95935.0,0.052142]
[1736872342959,0.412939,95941.0,95928.0,0.052145]
[1736872343261,0.052141,95936.0,95934.0,0.052142]
[1736872343466,0.3608,95941.0,95928.0,0.052145]
[1736872343763,0.052142,95934.0,95930.0,0.02090597]
[1736872343956,0.052142,95934.0,95933.0,1.5]
[1736872344659,0.3618,95941.0,95926.0,0.003]
[1736872344660,0.052146,95927.0,95926.0,0.003]
[1736872345064,0.052145,95928.0,95927.0,0.002]
[1736872345864,0.052151,95918.0,95917.0,0.052151]
[1736872347166,0.053151,95918.0,95917.0,0.059151]
[1736872347354,0.053151,95918.0,95917.0,0.007]
[1736872348464,0.053151,95918.0,95917.0,0.011]
[1736872349263,0.053151,95918.0,95917.0,0.0107001]
[1736872349866,0.054151,95918.0,95900.0,0.05970276]
[1736872350061,0.052159,95905.0,95904.0,0.052158]
[1736872350363,0.052159,95905.0,95900.0,0.05970276]
[1736872350364,0.05216,95901.0,95900.0,0.05970276]
[1736872350759,0.05216,95901.0,95900.0,0.01799324]
[1736872350959,0.05216,95901.0,95900.0,0.02499324]
[1736872351963,0.05216,95901.0,95900.0,0.02299324]
[1736872352161,0.05216,95901.0,95900.0,0.01289967]
[1736872352862,0.05316,95901.0,95900.0,0.01289967]
[1736872353657,0.07365342,95901.0,95900.0,0.01089967]
[1736872353863,0.05316,95901.0,95900.0,0.01089967]
[1736872354067,0.001,95901.0,95900.0,0.01089967]
[1736872354264,0.001,95901.0,95900.0,1.87169967]
[1736872354465,0.052153,95915.0,95901.0,0.05216]
[1736872354659,0.10773544,95919.0,95917.0,0.052151]
[1736872354966,0.02053544,95919.0,95900.0,0.47891792]
[1736872355159,0.3608,95909.0,95900.0,0.37169967]
[1736872355363,0.05216,95902.0,95901.0,1.5]
[1736872355571,0.05216,95902.0,95901.0,1.55216]
[1736872355758,0.3608,95909.0,95901.0,1.5]
[1736872355963,0.052152,95916.0,95915.0,0.052152]
[1736872356167,0.38135856,95917.0,95916.0,0.052152]
[1736872357364,0.43350956,95917.0,95916.0,0.052152]
[1736872357771,0.38135856,95917.0,95901.0,1.5]
[1736872357968,0.052158,95906.0,95905.0,0.052158]
[1736872358563,0.38135856,95917.0,95900.0,0.36869967]
[1736872358564,0.052155,95911.0,95910.0,0.052154]
[1736872358769,0.052159,95905.0,95904.0,0.052158]
[1736872358967,0.052159,95902.0,95901.0,0.003]
[1736872360268,0.053159,95902.0,95901.0,0.003]
[1736872360472,0.001,95902.0,95891.0,0.00799733]
[1736872360771,0.052168,95887.0,95886.0,0.142068]
[1736872362178,0.053168,95887.0,95886.0,1.642068]
[1736872363775,0.053168,95887.0,95886.0,1.647068]
[1736872364363,0.001,95887.0,95886.0,1.647068]
[1736872364571,0.05216,95902.0,95886.0,1.647068]
[1736872364876,0.052161,95899.0,95898.0,0.052161]
[1736872365071,0.4341404,95904.0,95903.0,0.052159]
[1736872365673,0.052142,95935.0,95903.0,0.052159]
[1736872365674,0.052156,95910.0,95909.0,0.052156]
[1736872366275,0.3608,95910.0,95892.0,0.3608]
[1736872366576,0.052162,95900.0,95899.0,0.05216]
[1736872367478,0.3608,95910.0,95904.0,0.052158]
[1736872367479,0.052158,95905.0,95904.0,0.052158]
[1736872367871,0.3608,95910.0,95909.0,0.052156]
[1736872367872,0.412955,95910.0,95909.0,0.052156]
[1736872368068,0.3608,95910.0,95909.0,0.052156]
[1736872369186,0.02131585,95918.0,95917.0,0.052151]
[1736872369372,0.3608,95920.0,95919.0,0.05215]
[1736872369572,0.052151,95917.0,95910.0,0.0802]
[1736872369771,0.052151,95917.0,95916.0,0.052152]
[1736872371279,0.3608,95920.0,95919.0,0.05215]
[1736872371477,0.00156453,95928.0,95919.0,0.05215]
[1736872371678,0.00156453,95928.0,95927.0,0.052146]
[1736872371976,0.3608,95946.0,95942.0,0.052136]
[1736872371977,0.052138,95943.0,95942.0,0.052136]
[1736872372573,0.38191537,95946.0,95945.0,0.052136]
[1736872373673,0.43405137,95946.0,95945.0,0.052136]
[1736872373986,0.38291537,95946.0,95945.0,0.052136]
[1736872374284,0.3618,95946.0,95945.0,0.052136]
[1736872374469,0.00156373,95970.0,95968.0,0.052123]
[1736872374667,0.052124,95969.0,95968.0,0.052123]
[1736872374872,0.052127,95963.0,95962.0,0.052127]
[1736872375072,0.00156373,95970.0,95956.0,1.50064]
[1736872375282,0.3608,95963.0,95962.0,0.052127]
[1736872375580,0.412926,95963.0,95962.0,0.052127]
[1736872376377,0.421926,95963.0,95962.0,0.052127]
[1736872376577,0.05213,95957.0,95956.0,0.05277]
[1736872376882,0.05213,95957.0,95945.0,0.3608]
[1736872376883,0.052133,95952.0,95951.0,0.052133]
[1736872377580,0.05213,95957.0,95956.0,0.052129]
[1736872377783,0.052127,95962.0,95961.0,0.052127]
[1736872377986,0.3738,95963.0,95962.0,0.052127]
[1736872378276,0.3648,95963.0,95962.0,0.052127]
[1736872378482,0.004,95963.0,95962.0,0.052127]
[1736872379582,0.009,95963.0,95962.0,0.052127]
[1736872379971,0.3608,95981.0,95962.0,0.412927]
[1736872380174,0.3608,95981.0,95980.0,0.052117]
[1736872380375,0.00156336,95993.0,95980.0,0.3608]
[1736872380585,0.1,96000.0,95999.0,0.052107]
[1736872380782,0.02122546,96015.0,96009.0,0.052101]
[1736872381173,0.02122546,96015.0,96009.0,1.552101]
[1736872381572,0.27592458,96016.0,96009.0,1.552101]
[1736872381779,0.27592458,96016.0,96009.0,1.912901]
[1736872381983,0.001,96010.0,96009.0,1.918901]
[1736872382387,0.001,96010.0,96009.0,1.506]
[1736872382679,0.001,96010.0,96009.0,0.006]
[1736872382877,0.001,96010.0,96009.0,0.007]
[1736872383082,0.052101,96011.0,96009.0,0.003]
[1736872383471,0.052101,96011.0,96009.0,0.002]
[1736872383676,0.001,96010.0,96009.0,0.002]
[1736872384078,0.001,96010.0,96009.0,0.054101]
[1736872384383,0.052097,96017.0,96009.0,0.002]
[1736872384582,0.001,96011.0,96008.0,0.3608]
[1736872384783,0.001,96011.0,96009.0,0.001]
[1736872385180,0.001,96011.0,96008.0,0.3608]
[1736872385375,0.001,96011.0,96009.0,0.003]
[1736872385579,0.001,96011.0,96010.0,0.052101]
[1736872385979,0.001,96011.0,96010.0,0.134601]
[1736872386584,0.01852376,96021.0,96010.0,0.0825]
[1736872386785,0.052096,96019.0,96017.0,0.052097]
[1736872386985,0.3608,96021.0,96011.0,0.0521]
[1736872387182,0.052101,96010.0,96009.0,0.001]
[1736872387387,0.3608,96021.0,96009.0,0.001]
[1736872387581,0.3608,96021.0,96019.0,0.052096]
[1736872387984,0.052095,96021.0,96019.0,0.052096]
[1736872388191,0.052101,96010.0,96009.0,0.002]
[1736872388383,0.052101,96010.0,95998.0,0.052107]
[1736872388384,0.3608,96010.0,95998.0,0.052107]
[1736872388585,0.3608,96010.0,96009.0,0.002]
[1736872388781,0.773701,96010.0,96009.0,0.002]
[1736872389085,0.052107,95999.0,95997.0,0.052107]
[1736872389392,0.052112,95990.0,95988.0,0.052113]
[1736872390085,0.01863892,95990.0,95972.0,0.0847]
[1736872390292,0.052119,95977.0,95970.0,0.052122]
[1736872390591,0.052121,95972.0,95962.0,0.052127]
[1736872390782,0.052121,95972.0,95963.0,0.052126]
[1736872390982,0.412921,95972.0,95959.0,0.052128]
[1736872391178,0.052123,95969.0,95954.0,0.3608]
[1736872391389,0.17213538,95970.0,95954.0,0.3608]
[1736872391593,0.052134,95951.0,95950.0,0.052133]
[1736872392290,0.052134,95951.0,95950.0,1.5]
[1736872392788,0.052135,95948.0,95947.0,0.052134]
[1736872393790,0.412918,95979.0,95959.0,0.052128]
[1736872393987,0.3608,95979.0,95967.0,0.3608]
[1736872394290,0.412918,95979.0,95977.0,0.052118]
[1736872394490,0.3608,95979.0,95968.0,1.5]
[1736872394993,0.05212,95975.0,95968.0,1.5]
[1736872395196,0.05212,95975.0,95973.0,0.052121]
[1736872395494,0.3618,95979.0,95967.0,0.3618]
[1736872395495,0.052123,95969.0,95967.0,0.001]
[1736872395685,0.412923,95969.0,95956.0,0.05213]
[1736872395886,0.412923,95969.0,95968.0,0.001]
[1736872396386,0.052127,95963.0,95961.0,0.052127]
[1736872397187,0.4741723,95969.0,95966.0,0.052124]
[1736872397385,0.052125,95965.0,95964.0,0.052125]
[1736872397582,0.4220483,95969.0,95957.0,1.5006]
[1736872397788,0.052129,95960.0,95959.0,0.052128]
[1736872398187,0.3608,95969.0,95957.0,1.5006]
[1736872398386,0.052129,95958.0,95957.0,1.5]
[1736872398781,0.052129,95958.0,95957.0,1.506]
[1736872399486,0.052129,95958.0,95957.0,0.006]
[1736872399687,0.11345619,95958.0,95957.0,0.006]
[1736872400193,0.11345619,95958.0,95957.0,0.007]
[1736872400388,0.052143,95933.0,95930.0,0.00156337]
[1736872400588,0.05213,95957.0,95930.0,0.00156337]
[1736872400589,0.052144,95931.0,95930.0,0.00156337]
[1736872401792,0.052144,95931.0,95910.0,0.3608]
[1736872401793,0.052154,95912.0,95910.0,0.3608]
[1736872402086,0.052151,95919.0,95910.0,0.3608]
[1736872402296,0.3608,95923.0,95910.0,0.3608]
[1736872402593,0.052152,95916.0,95915.0,0.052152]
[1736872405095,0.052152,95916.0,95915.0,1.552152]
[1736872405489,0.052152,95916.0,95915.0,1.5]
[1736872407288,0.052155,95911.0,95901.0,0.3608]
[1736872407484,0.05216,95901.0,95900.0,0.15216]
[1736872407689,0.05216,95901.0,95900.0,0.1]
[1736872407900,0.05216,95901.0,95880.0,0.3614]
[1736872407901,0.05217,95882.0,95881.0,1.5]
[1736872408597,0.05217,95882.0,95880.0,0.3608]
[1736872408795,0.06960301,95882.0,95880.0,0.3608]
[1736872408994,0.01743301,95882.0,95879.0,0.052172]
[1736872409194,0.052171,95880.0,95879.0,0.052172]
[1736872410691,0.06973083,95880.0,95879.0,0.058172]
[1736872410894,0.06973083,95880.0,95879.0,0.04338897]
[1736872411090,0.07073083,95880.0,95879.0,0.04538897]
[1736872411293,0.001,95880.0,95879.0,0.04538897]
[1736872412397,0.001,95880.0,95879.0,1.54538897]
[1736872412596,0.002,95880.0,95879.0,1.54538897]
[1736872413811,0.3608,95891.0,95890.0,0.052166]
[1736872414400,0.3608,95891.0,95890.0,1.552166]
[1736872415208,0.3618,95891.0,95890.0,1.554166]
[1736872415599,0.001,95891.0,95890.0,1.914966]
[1736872415793,0.052156,95910.0,95909.0,0.052155]
[1736872416201,0.052153,95914.0,95896.0,0.1618]
[1736872416410,0.3608,95916.0,95908.0,0.052156]
[1736872416905,0.37834371,95916.0,95910.0,0.052155]
[1736872417204,0.052155,95911.0,95910.0,0.052155]
[1736872417593,0.001,95914.0,95913.0,0.052154]
[1736872418102,0.1625,95934.0,95922.0,0.052149]
[1736872418307,0.052148,95924.0,95922.0,0.052149]
[1736872418606,0.06973129,95924.0,95922.0,1.552149]
[1736872418795,0.06973129,95924.0,95922.0,1.5]
[1736872418998,0.06973129,95924.0,95923.0,0.052148]
[1736872419593,0.053148,95923.0,95922.0,1.5006]
[1736872419795,0.053148,95923.0,95922.0,1.5]
[1736872420001,0.052155,95911.0,95910.0,0.004]
[1736872420197,0.17213538,95891.0,95881.0,0.3608]
[1736872420405,0.052166,95890.0,95889.0,0.052166]
[1736872421099,0.052168,95887.0,95886.0,0.052167]
[1736872421603,0.01699815,95891.0,95880.0,0.052171]
[1736872421903,0.01699815,95891.0,95872.0,1.50064]
[1736872421904,0.052175,95873.0,95872.0,0.00064]
[1736872422094,0.052176,95872.0,95870.0,0.052177]
[1736872422295,0.052176,95872.0,95852.0,0.052187]
[1736872422296,0.05218,95865.0,95864.0,0.05218]
[1736872423402,0.052182,95861.0,95860.0,0.052182]
[1736872423795,0.3608,95873.0,95859.0,1.5006]
[1736872423999,0.052182,95860.0,95859.0,1.5]
[1736872424605,0.052182,95860.0,95859.0,1.552183]
[1736872424800,0.001,95865.0,95864.0,0.05218]
[1736872425003,0.052173,95877.0,95876.0,0.052171]
[1736872425799,0.06970095,95877.0,95876.0,1.552171]
[1736872426598,0.06970095,95877.0,95876.0,1.555171]
[1736872427012,0.06970095,95877.0,95876.0,1.503]
[1736872427306,0.07070095,95877.0,95876.0,0.003]
[1736872428303,0.07070095,95877.0,95876.0,0.055174]
[1736872428706,0.001,95877.0,95876.0,0.055174]
[1736872429106,0.001,95877.0,95876.0,1.555174]
[1736872430907,0.001,95877.0,95876.0,0.055174]
[1736872431307,0.053173,95877.0,95876.0,0.055174]
[1736872431808,0.053173,95877.0,95876.0,0.003]
[1736872432808,0.053173,95877.0,95876.0,0.055174]
[1736872433113,0.001,95877.0,95876.0,0.055174]
[1736872433511,0.001,95877.0,95860.0,0.17213538]
[1736872433512,0.052177,95870.0,95849.0,0.3608]
[1736872433710,0.3608,95867.0,95849.0,0.3608]
[1736872433911,0.3608,95867.0,95850.0,1.5]
[1736872434100,0.052183,95859.0,95850.0,1.5]
[1736872434304,0.3608,95867.0,95850.0,1.5]
[1736872434506,0.052181,95862.0,95860.0,0.052182]
[1736872434705,0.052182,95861.0,95860.0,0.052182]
[1736872435009,0.052182,95861.0,95850.0,1.5]
[1736872435613,0.052182,95861.0,95860.0,0.052182]
[1736872436207,0.052187,95852.0,95851.0,0.052187]
[1736872437817,0.052187,95851.0,95850.0,0.006]
[1736872438610,0.054187,95852.0,95851.0,0.006]
[1736872439513,0.052191,95844.0,95843.0,0.052191]
[1736872439911,0.052189,95850.0,95849.0,0.052188]
[1736872440107,0.3608,95858.0,95841.0,0.3608]
[1736872440307,0.3608,95858.0,95857.0,0.052184]
[1736872440308,0.412984,95858.0,95857.0,0.052184]
[1736872440614,0.3608,95858.0,95857.0,0.052184]
[1736872441019,0.3608,95858.0,95857.0,1.552184]
[1736872441623,0.412983,95858.0,95857.0,1.552184]
[1736872442012,0.052186,95853.0,95852.0,0.052186]
[1736872442510,0.052186,95853.0,95852.0,1.552186]
[1736872442815,0.052191,95844.0,95843.0,0.05219]
[1736872443614,0.052195,95839.0,95838.0,0.052194]
[1736872444614,0.052197,95834.0,95833.0,0.052197]
[1736872445413,0.052197,95834.0,95830.0,0.3608]
[1736872445414,0.052198,95832.0,95830.0,0.3608]
[1736872445614,0.052198,95832.0,95831.0,0.05376312]
[1736872445813,0.052198,95832.0,95831.0,0.00156512]
[1736872446409,0.052204,95821.0,95820.0,0.3608]
[1736872446611,0.052204,95821.0,95812.0,0.052208]
[1736872446812,0.052213,95803.0,95802.0,0.3608]
[1736872447124,0.052213,95803.0,95802.0,0.413014]
[1736872448023,0.052213,95803.0,95802.0,0.052214]
[1736872448409,0.052213,95805.0,95802.0,0.052213]
[1736872448612,0.052208,95813.0,95812.0,0.0108571]
[1736872448816,0.0788,95819.0,95809.0,0.05221]
[1736872448817,0.052209,95811.0,95809.0,0.05221]
[1736872449020,0.052209,95811.0,95800.0,0.09994]
[1736872449318,0.052209,95811.0,95810.0,0.05221]
[1736872449523,0.09451604,95819.0,95805.0,0.3608]
[1736872449722,0.052212,95808.0,95807.0,0.052211]
[1736872450920,0.001,95811.0,95805.0,0.3608]
[1736872450921,0.001,95811.0,95810.0,0.05221]
[1736872451115,0.052194,95839.0,95810.0,0.04142541]
[1736872451323,0.052204,95821.0,95820.0,0.052204]
[1736872452011,0.052204,95821.0,95814.0,0.3608]
[1736872452012,0.37657947,95830.0,95829.0,0.052199]
[1736872452211,0.052192,95842.0,95840.0,0.052193]
[1736872452415,0.0845,95847.0,95840.0,0.052193]
[1736872452615,0.499093,95841.0,95840.0,0.052193]
[1736872452819,0.5150547,95841.0,95840.0,0.052193]
[1736872453014,0.3767617,95841.0,95840.0,0.052193]
[1736872453814,0.3837617,95841.0,95840.0,0.052193]
[1736872454519,0.052196,95835.0,95834.0,0.052196]
[1736872456125,0.3767617,95841.0,95840.0,0.052193]
[1736872456522,0.3608,95850.0,95840.0,0.052193]
[1736872456718,0.3608,95850.0,95849.0,0.052188]
[1736872456914,0.3608,95859.0,95858.0,0.052183]
[1736872457119,0.01481496,95860.0,95858.0,0.052183]
[1736872457321,0.00156545,95867.0,95866.0,0.052179]
[1736872457824,0.052181,95863.0,95862.0,0.052181]
[1736872459016,0.05374445,95867.0,95866.0,0.052179]
[1736872460124,0.00156545,95867.0,95866.0,0.052179]
[1736872460521,0.00356545,95867.0,95866.0,0.052179]
[1736872460729,0.06493635,95867.0,95866.0,0.052179]
[1736872461116,0.24487679,95878.0,95877.0,0.052173]
[1736872462123,0.01464811,95880.0,95873.0,0.3608]
[1736872462322,0.003,95878.0,95873.0,1.8608]
[1736872462522,0.003,95878.0,95877.0,0.052173]
[1736872464019,0.003,95878.0,95877.0,0.054173]
[1736872464419,0.01468503,95890.0,95877.0,0.054173]
[1736872464624,0.412966,95891.0,95877.0,0.054173]
[1736872464824,0.412966,95891.0,95890.0,0.052166]
[1736872465029,0.24487679,95896.0,95890.0,0.052166]
[1736872465030,0.24487679,95896.0,95895.0,0.052163]
[1736872465525,0.052161,95899.0,95890.0,0.3608]
[1736872465727,0.052161,95899.0,95898.0,0.052162]
[1736872466027,0.24487679,95903.0,95902.0,0.052159]
[1736872466532,0.29703579,95903.0,95902.0,0.052159]
[1736872467029,0.3608,95904.0,95903.0,0.052159]
[1736872467937,0.3608,95904.0,95891.0,0.0852]
[1736872468127,0.052161,95899.0,95897.0,0.052162]
[1736872468326,0.17213538,95901.0,95881.0,0.3608]
[1736872468531,0.052164,95894.0,95893.0,0.052163]
[1736872468839,0.3608,95895.0,95894.0,0.052164]
[1736872469033,0.052162,95898.0,95883.0,0.05217]
[1736872469229,0.052162,95898.0,95897.0,0.052162]
[1736872469628,0.3748,95904.0,95902.0,0.052159]
[1736872469629,0.052159,95903.0,95902.0,0.052159]
[1736872470433,0.01479339,95903.0,95902.0,0.052159]
[1736872470630,0.3608,95904.0,95903.0,0.052159]
[1736872470938,0.00220467,95914.0,95913.0,0.052154]
[1736872471125,0.00220467,95914.0,95897.0,0.3608]
[1736872471126,0.00156467,95914.0,95897.0,0.3608]
[1736872471329,0.052158,95905.0,95904.0,0.052158]
[1736872471536,0.17213538,95910.0,95909.0,0.052156]
[1736872471731,0.052155,95910.0,95909.0,0.052156]
[1736872472335,0.01605836,95914.0,95905.0,0.3608]
[1736872472538,0.3608,95932.0,95913.0,0.3608]
[1736872472734,0.3608,95932.0,95916.0,0.052151]
[1736872472735,0.17213538,95920.0,95916.0,0.052151]
[1736872473640,0.052152,95917.0,95916.0,0.052151]
[1736872474739,0.052161,95902.0,95901.0,0.052159]
[1736872474934,0.052162,95898.0,95896.0,0.052162]
[1736872475234,0.3608,95908.0,95896.0,0.052162]
[1736872475235,0.3608,95899.0,95896.0,0.052162]
[1736872475440,0.052162,95897.0,95896.0,0.052162]
[1736872475935,0.052164,95894.0,95891.0,0.052165]
[1736872476137,0.052164,95894.0,95893.0,0.05372808]
[1736872477637,0.053164,95894.0,95893.0,0.05572808]
[1736872477838,0.053164,95894.0,95893.0,0.05672808]
[1736872478734,0.001,95894.0,95893.0,0.05672808]
[1736872478936,0.052155,95911.0,95910.0,0.052154]
[1736872479129,0.3608,95917.0,95916.0,0.052152]
[1736872479331,0.00064,95928.0,95927.0,0.052146]
[1736872479532,0.052785,95928.0,95927.0,0.052146]
[1736872479732,0.01471114,95932.0,95915.0,1.5]
[1736872479937,0.052149,95923.0,95922.0,0.052147]
[1736872481244,0.052152,95918.0,95917.0,0.052151]
[1736872482647,0.052148,95924.0,95913.0,0.052153]
[1736872482939,0.0614456,95918.0,95917.0,0.052151]
[1736872483338,0.3608,95934.0,95931.0,0.052144]
[1736872483548,0.3608,95934.0,95933.0,0.052143]
[1736872483842,0.01508326,95942.0,95931.0,0.3608]
[1736872484040,0.3608,95951.0,95931.0,0.3608]
[1736872484237,0.3608,95958.0,95946.0,0.052136]
[1736872484439,0.30809118,95950.0,95946.0,0.052136]
[1736872484645,0.30809118,95950.0,95939.0,0.3608]
[1736872484841,0.30809118,95950.0,95946.0,0.052136]
[1736872485235,0.0055641,95947.0,95946.0,0.052136]
[1736872486055,0.004,95947.0,95946.0,0.052136]
[1736872486540,0.004,95947.0,95946.0,0.055136]
[1736872486745,0.3608,95958.0,95946.0,0.003]
[1736872486950,0.05213,95956.0,95954.0,0.052131]
[1736872487137,0.3608,95958.0,95954.0,0.052131]
[1736872487338,0.052131,95955.0,95954.0,0.052131]
[1736872488050,0.37552452,95958.0,95957.0,0.05213]
[1736872488246,0.37552452,95958.0,95947.0,0.052135]
[1736872488247,0.1549,95966.0,95965.0,0.052125]
[1736872489144,0.0791,95966.0,95965.0,0.052125]
[1736872489343,0.052123,95970.0,95969.0,0.052123]
[1736872490640,0.007,95970.0,95969.0,0.052123]
[1736872491551,0.011,95970.0,95969.0,0.052123]
[1736872492051,0.011,95970.0,95968.0,0.052123]
[1736872492249,0.011,95970.0,95969.0,0.052123]
[1736872493248,0.01,95970.0,95969.0,0.052123]
[1736872493450,0.01,95970.0,95969.0,1.552123]
[1736872493653,0.009,95970.0,95969.0,1.552123]
[1736872493854,0.01,95970.0,95969.0,1.552123]
[1736872494544,0.011,95970.0,95969.0,1.552123]
[1736872495048,0.011,95970.0,95969.0,0.052123]
[1736872495853,0.063123,95970.0,95969.0,0.052123]
[1736872496753,0.052127,95961.0,95960.0,0.052127]
[1736872497445,0.052125,95967.0,95966.0,0.052124]
[1736872497642,0.1584,95969.0,95956.0,0.3608]
[1736872497848,0.052129,95962.0,95961.0,0.052127]
[1736872500250,0.052131,95955.0,95946.0,0.3608]
[1736872500453,0.052128,95960.0,95959.0,0.052127]
[1736872500649,0.005,95962.0,95961.0,0.052127]
[1736872501153,0.057127,95962.0,95941.0,1.50056]
[1736872501450,0.052137,95944.0,95941.0,0.00056]
[1736872501657,0.052137,95944.0,95936.0,0.3608]
[1736872501658,0.052137,95944.0,95943.0,0.0537003]
[1736872501852,0.3608,95975.0,95943.0,0.0015633]
[1736872502157,0.3608,95975.0,95961.0,0.052127]
[1736872502358,0.003,95962.0,95961.0,0.052127]
[1736872502561,0.412927,95965.0,95964.0,0.052126]
[1736872502851,0.052126,95964.0,95960.0,0.052128]
[1736872503059,0.052129,95961.0,95960.0,0.052128]
[1736872503356,0.003,95962.0,95961.0,0.052127]
[1736872503744,0.002,95962.0,95961.0,0.052127]
[1736872503944,0.37990319,95965.0,95956.0,0.3608]
[1736872503945,0.3648,95965.0,95956.0,0.3608]
[1736872504254,0.002,95964.0,95963.0,0.052126]
[1736872505360,0.054126,95964.0,95963.0,0.052126]
[1736872505555,0.052129,95959.0,95958.0,0.052129]
[1736872505953,0.052131,95956.0,95954.0,0.052131]
[1736872506263,0.052131,95956.0,95955.0,0.052131]
[1736872506554,0.052131,95956.0,95948.0,0.3608]
[1736872506555,0.052127,95962.0,95961.0,0.052127]
[1736872506750,0.052127,95962.0,95948.0,0.3608]
[1736872506751,0.002,95959.0,95954.0,0.052131]
[1736872506953,0.3608,95955.0,95943.0,0.0015633]
[1736872507155,0.052136,95948.0,95947.0,0.052135]
[1736872507349,0.3608,95955.0,95943.0,0.0537003]
[1736872507350,0.052137,95944.0,95943.0,0.0537003]
[1736872508352,0.052134,95950.0,95949.0,0.052133]
[1736872509464,0.06579987,95950.0,95949.0,0.052133]
[1736872509664,0.01366587,95950.0,95943.0,0.0015633]
[1736872509959,0.052137,95944.0,95943.0,0.0536993]
[1736872510259,0.052137,95944.0,95943.0,0.0015633]
[1736872510855,0.052137,95944.0,95943.0,0.0065633]
[1736872511049,0.052137,95944.0,95943.0,0.0587003]
[1736872511251,0.28521586,95944.0,95943.0,0.0587003]
[1736872511452,0.23307886,95944.0,95943.0,0.05414105]
[1736872511751,0.28621586,95944.0,95943.0,0.05814105]
[1736872512455,0.23407886,95944.0,95943.0,0.05814105]
[1736872512765,0.28621586,95944.0,95943.0,0.05814105]
[1736872513154,0.053137,95944.0,95943.0,1.55814105]
[1736872514159,0.413937,95944.0,95943.0,0.00600405]
[1736872514363,0.052151,95919.0,95918.0,0.05215]
[1736872514661,0.052151,95919.0,95910.0,0.18672453]
[1736872514662,0.052155,95911.0,95910.0,0.18672453]
[1736872514860,0.052158,95905.0,95893.0,0.3608]
[1736872515056,0.052158,95905.0,95892.0,0.00056]
[1736872515257,0.052158,95905.0,95901.0,0.05216]
[1736872515659,0.052159,95902.0,95901.0,0.05216]
[1736872515964,0.052159,95902.0,95901.0,0.02435328]
[1736872516563,0.052164,95897.0,95896.0,0.052163]
[1736872516955,0.052165,95892.0,95891.0,0.412965]
[1736872517459,0.42696104,95902.0,95901.0,0.002]
[1736872517861,0.052162,95899.0,95898.0,0.052161]
[1736872519264,0.052165,95894.0,95893.0,0.052164]
[1736872519462,0.052161,95899.0,95898.0,0.052161]
[1736872519962,0.053161,95899.0,95898.0,0.052161]
[1736872520263,0.001,95899.0,95898.0,1.552161]
[1736872520468,0.052153,95914.0,95898.0,1.503]
[1736872520657,0.052153,95914.0,95913.0,0.052154]
[1736872520863,0.052153,95914.0,95913.0,0.03129939]
[1736872521056,0.052156,95908.0,95900.0,0.14789025]
[1736872521263,0.16455828,95918.0,95898.0,0.003]
[1736872521458,0.052154,95913.0,95912.0,0.052153]
[1736872522463,0.06540928,95918.0,95917.0,0.052151]
[1736872522671,0.3608,95921.0,95908.0,0.17213538]
[1736872522858,0.3608,95921.0,95920.0,0.05215]
[1736872523857,0.3618,95921.0,95920.0,0.05215]
[1736872524563,0.01353034,95939.0,95936.0,0.052141]
[1736872524871,0.5175,95938.0,95921.0,0.3608]
[1736872525063,0.5175,95938.0,95922.0,1.5]
[1736872525459,0.052146,95928.0,95926.0,0.052146]
[1736872525673,0.052146,95927.0,95926.0,0.052146]
[1736872526064,0.052148,95923.0,95922.0,1.86136]